bitfinex-derivatives/quotes_ETHF0:USTF0_20210407
["timestamp","ask_amount","ask_price","bid_price","bid_amount"]
[1617815704435,77.5187,1991.5,1990.7,2.90695]
[1617815704835,77.5187,1991.5,1990.8,6.18]
[1617815705038,32.0,1992.3,1990.8,6.18]
[1617815705237,63.4015,1990.9,1990.8,6.18]
[1617815705437,63.4015,1990.9,1989.8,72.158]
[1617815705737,4.7869,1991.2,1989.1,33.0106]
[1617815705937,62.667,1990.3,1989.1,33.0106]
[1617815706137,65.1263,1990.3,1989.1,33.0106]
[1617815706337,65.1263,1990.3,1989.7,6.04]
[1617815706538,65.1263,1990.3,1990.2,2.90695]
[1617815707038,65.1263,1990.3,1990.2,9.04695]
[1617815708439,68.03325,1990.3,1990.2,9.04695]
[1617815710041,68.03325,1990.3,1990.2,2.90695]
[1617815710540,65.57395,1990.3,1990.2,2.90695]
[1617815710841,2.90695,1990.3,1990.2,2.90695]
[1617815711042,2.90695,1990.3,1990.2,9.17695]
[1617815714244,82.6333,1991.3,1990.2,9.17695]
[1617815714547,82.6333,1991.3,1990.5,2.90695]
[1617815715245,82.6333,1991.3,1990.1,62.565]
[1617815715945,82.6333,1991.3,1990.2,6.32]
[1617815716146,82.6333,1991.3,1990.2,9.1253]
[1617815716647,2.90695,1990.3,1990.2,13.04885]
[1617815718248,2.41675,1990.3,1990.2,13.04885]
[1617815720048,82.6333,1991.3,1990.2,13.04885]
[1617815720649,82.6333,1991.3,1990.7,2.90695]
[1617815720853,82.6333,1991.3,1990.7,4.90585]
[1617815721049,32.0,1991.8,1990.8,6.23]
[1617815721249,32.0,1991.8,1990.8,7.2248]
[1617815721450,102.6656,1991.8,1990.8,7.2248]
[1617815722749,2.90695,1990.9,1990.8,7.2248]
[1617815725953,79.1851,1991.1,1990.8,7.2248]
[1617815726153,2.0,1992.0,1990.8,9.6541]
[1617815726353,65.6991,1992.1,1990.9,71.1627]
[1617815726553,2.0,1992.0,1990.9,71.1627]
[1617815726757,65.6991,1992.1,1991.3,2.90695]
[1617815726954,65.6991,1992.1,1991.3,4.95595]
[1617815727153,2.0,1992.0,1991.4,6.29]
[1617815727654,65.6991,1992.1,1991.4,7.3056]
[1617815728056,2.0,1992.7,1991.4,7.3056]
[1617815728255,2.0,1992.5,1991.6,70.7207]
[1617815728658,2.90695,1991.7,1991.6,70.7207]
[1617815729256,2.90695,1991.7,1991.6,76.9607]
[1617815729857,2.90695,1991.7,1991.6,0.9947]
[1617815731958,2.90695,1991.7,1991.5,2.90695]
[1617815732562,2.90695,1991.7,1991.6,6.17]
[1617815734161,2.90695,1991.7,1991.6,6.153]
[1617815735263,58.6429,1993.0,1991.7,56.3309]
[1617815735464,60.6429,1993.0,1991.7,59.0188]
[1617815735866,60.6429,1993.0,1991.8,6.03]
[1617815736867,60.6429,1993.0,1992.1,2.90695]
[1617815737065,60.6429,1993.0,1992.2,6.17]
[1617815738771,2.90695,1992.3,1992.2,6.17]
[1617815741674,108.4169,1993.6,1992.3,71.476]
[1617815741873,78.4169,1993.6,1992.3,74.5562]
[1617815742077,78.4169,1993.6,1992.4,6.19]
[1617815742777,78.4169,1993.6,1992.6,2.90695]
[1617815743376,78.4169,1993.6,1992.7,6.14]
[1617815743678,0.05796357,1994.2,1992.7,8.2778]
[1617815743877,77.50169599,1994.5,1993.1,66.7048]
[1617815744077,77.50169599,1994.5,1993.1,69.0416]
[1617815744277,2.0,1994.4,1993.2,6.22]
[1617815744477,30.0,1994.3,1993.2,6.22]
[1617815744677,2.0,1994.2,1993.2,6.22]
[1617815744979,2.90695,1993.3,1993.2,9.12695]
[1617815747683,2.90695,1993.3,1993.2,2.90695]
[1617815747884,2.90695,1993.3,1993.1,2.3368]
[1617815748092,58.3101,1993.1,1991.1,75.7328]
[1617815748389,30.0,1993.0,1990.3,5.31742455]
[1617815748586,77.8857,1991.8,1990.3,5.31742455]
[1617815748789,77.8857,1991.8,1990.5,2.90695]
[1617815748790,32.7666,1991.8,1990.5,2.90695]
[1617815748987,77.9092,1990.9,1990.5,2.90695]
[1617815749190,79.8844,1990.9,1990.5,2.90695]
[1617815749387,79.8844,1990.9,1990.6,6.14]
[1617815749589,79.8844,1990.9,1989.4,5.32014319]
[1617815749789,1.9752,1990.9,1989.3,30.0]
[1617815750089,74.5107,1990.1,1989.3,30.0]
[1617815750289,77.2662,1990.1,1989.7,6.28]
[1617815750889,2.7555,1990.1,1990.0,2.90695]
[1617815751189,2.7555,1990.1,1990.0,9.20695]
[1617815751488,1.9752,1990.9,1990.0,39.20695]
[1617815751692,71.5185,1991.3,1990.0,9.20695]
[1617815752090,71.5185,1991.3,1990.0,41.08835]
[1617815752789,70.8414,1991.3,1991.2,2.90695]
[1617815752992,2.90695,1991.8,1991.2,4.89605]
[1617815753191,57.4028,1991.7,1991.2,4.89605]
[1617815753490,57.4028,1991.7,1991.2,11.17605]
[1617815754491,65.2345,1993.0,1991.3,63.6571]
[1617815754794,65.2345,1993.0,1992.6,2.90695]
[1617815754999,0.0290515,1993.4,1992.6,5.05815]
[1617815755191,82.6828515,1993.4,1992.6,5.05815]
[1617815755492,112.6538,1993.4,1992.6,5.05815]
[1617815755894,82.6538,1993.4,1992.6,5.05815]
[1617815756392,82.6538,1993.4,1992.7,6.06]
[1617815756794,82.6538,1993.4,1992.9,2.90695]
[1617815757898,32.571,1993.7,1992.9,2.90695]
[1617815758094,2.571,1993.7,1993.0,72.097]
[1617815758294,2.571,1993.7,1993.0,75.1801]
[1617815758494,0.02910271,1993.8,1993.1,6.23]
[1617815758695,0.02909471,1994.0,1993.7,58.6835]
[1617815758895,0.02909471,1994.0,1993.9,2.90695]
[1617815759398,0.46551532,1994.4,1993.9,2.90695]
[1617815759399,0.02910838,1994.3,1993.9,2.90695]
[1617815759594,0.02911297,1994.5,1993.9,2.90695]
[1617815760196,0.46580758,1994.9,1993.9,2.90695]
[1617815760197,0.02913117,1994.8,1994.5,69.368]
[1617815760397,0.05827855,1995.1,1994.5,72.2394]
[1617815760594,0.05827855,1995.1,1994.5,2.8714]
[1617815761498,0.05817844,1995.0,1994.0,61.0282]
[1617815761900,0.05816722,1994.9,1994.0,61.0282]
[1617815762901,83.4875,1994.4,1993.3,2.90695]
[1617815763103,30.0,1994.3,1993.3,2.90695]
[1617815763401,32.0,1994.3,1992.5,74.9604]
[1617815763802,0.05804913,1994.2,1992.5,74.9604]
[1617815764001,0.05804913,1994.2,1992.6,6.06]
[1617815764201,0.05804913,1994.2,1992.5,74.9604]
[1617815764202,0.02901509,1993.9,1992.5,74.9604]
[1617815764403,1.93661509,1993.9,1992.5,74.9604]
[1617815764901,2.90695,1992.6,1992.5,74.9604]
[1617815765101,5.34115,1992.6,1992.3,2.90695]
[1617815765503,69.00025,1992.6,1991.1,2.0]
[1617815766303,69.00025,1992.6,1991.2,6.32]
[1617815766909,66.0933,1992.6,1991.8,2.90695]
[1617815767106,2.4342,1992.6,1991.8,2.90695]
[1617815767305,32.0,1993.4,1992.0,58.6059]
[1617815767805,32.0,1993.4,1992.1,6.19]
[1617815768504,0.02906325,1993.4,1992.1,8.2375]
[1617815768905,0.02907742,1993.7,1992.9,69.9729]
[1617815769108,0.02907742,1993.7,1992.9,72.4771]
[1617815769306,0.02909411,1993.9,1993.0,6.13]
[1617815769906,0.02909957,1994.0,1993.0,6.13]
[1617815770611,0.02910711,1994.1,1993.0,6.13]
[1617815771012,0.02907542,1994.4,1993.2,2.90695]
[1617815771414,0.02907542,1994.4,1993.7,67.9338]
[1617815771614,0.02907542,1994.4,1993.7,71.0073]
[1617815771817,0.02907822,1994.6,1993.7,71.0073]
[1617815772315,30.0,1994.7,1993.7,71.0073]
[1617815772917,30.0,1994.6,1993.7,71.0073]
[1617815773117,30.0,1994.6,1992.9,2.5042]
[1617815773417,78.8303,1994.3,1991.9,61.0557]
[1617815773617,30.0,1994.2,1991.9,61.0557]
[1617815773816,32.164,1994.2,1991.9,61.0557]
[1617815774017,34.164,1994.2,1992.0,6.14]
[1617815774918,34.164,1994.2,1992.8,2.90695]
[1617815776022,32.0289846,1994.2,1992.8,2.90695]
[1617815776222,32.0,1994.2,1992.8,2.90695]
[1617815777021,32.0,1994.2,1993.1,2.90695]
[1617815777621,30.0,1994.2,1993.1,2.90695]
[1617815778022,30.0,1994.2,1992.2,2.5266]
[1617815778624,30.0,1994.2,1992.3,6.13]
[1617815778924,30.0,1994.2,1993.0,2.90695]
[1617815779225,30.0,1994.2,1992.0,6.1]
[1617815779425,32.0595,1994.2,1992.0,6.1]
[1617815779626,32.0595,1994.2,1991.9,61.0557]
[1617815780025,32.0595,1994.2,1992.0,6.12]
[1617815780229,78.8303,1994.3,1992.0,10.1623]
[1617815780928,108.8303,1994.3,1992.0,10.1623]
[1617815781129,108.8303,1994.3,1993.5,2.90695]
[1617815781331,30.0,1994.6,1993.5,4.79685]
[1617815782634,69.1343,1994.0,1992.0,3.041]
[1617815782833,30.0,1993.9,1991.7,80.266]
[1617815783033,30.0,1993.9,1992.5,2.90695]
[1617815783234,32.0,1993.9,1992.5,2.90695]
[1617815783833,32.0,1993.9,1991.7,80.266]
[1617815784034,32.0,1993.9,1991.2,2.0]
[1617815784236,66.8574,1993.1,1991.2,2.0]
[1617815784438,99.6343,1993.1,1991.3,6.03]
[1617815784835,69.6343,1993.1,1991.3,36.03]
[1617815785040,2.90695,1992.8,1992.4,2.90695]
[1617815785640,2.90695,1992.8,1992.5,6.31]
[1617815787042,2.90695,1992.8,1992.7,2.90695]
[1617815788345,95.6923,1993.7,1992.7,2.90695]
[1617815788545,65.6923,1993.7,1992.7,2.90695]
[1617815789145,32.0,1994.2,1993.1,2.90695]
[1617815789347,32.0,1994.2,1993.2,78.5419]
[1617815790447,62.7964,1993.9,1992.0,70.5124]
[1617815790746,32.0,1993.8,1992.0,70.5124]
[1617815790947,34.433,1993.8,1992.1,6.22]
[1617815791149,34.433,1993.8,1992.6,2.90695]
[1617815791647,34.433,1993.8,1992.0,70.5124]
[1617815791947,34.433,1993.8,1990.7,30.0]
[1617815792147,56.4461,1992.9,1990.8,2.0]
[1617815792346,30.0,1992.8,1990.5,73.7693]
[1617815792549,30.0,1992.8,1990.9,6.15]
[1617815792949,30.0,1992.8,1990.6,6.19]
[1617815793149,30.0,1992.8,1991.7,2.90695]
[1617815793550,30.0,1992.8,1991.7,72.75135]
[1617815794250,2.0,1992.7,1991.7,72.75135]
[1617815794550,30.0,1992.6,1991.7,69.8444]
[1617815794849,30.0,1992.6,1989.8,30.0]
[1617815794850,32.0,1992.6,1990.3,72.739]
[1617815795050,32.0,1992.6,1991.4,2.90695]
[1617815795850,32.0,1992.6,1991.4,64.43605]
[1617815796254,2.0,1993.1,1991.4,66.81235]
[1617815796554,30.0,1992.9,1991.5,6.18]
[1617815797159,30.0,1992.9,1991.7,2.90695]
[1617815797359,30.0,1992.8,1991.7,2.90695]
[1617815797561,30.0,1992.8,1991.8,6.19]
[1617815797762,30.0,1992.8,1991.4,63.9054]
[1617815797962,32.5785,1992.8,1990.7,1.9717]
[1617815798262,72.0989,1992.4,1990.5,75.6501]
[1617815798461,32.0,1992.3,1990.5,75.6501]
[1617815798962,32.0,1992.3,1990.6,6.2]
[1617815799161,30.0,1992.3,1991.5,2.90695]
[1617815799964,30.0,1992.3,1991.5,5.93505]
[1617815801165,2.90695,1991.6,1991.5,5.93505]
[1617815801366,2.90695,1991.6,1991.5,3.0281]
[1617815801766,2.90695,1991.6,1991.1,3.1012]
[1617815801966,57.0994,1991.4,1991.1,3.1012]
[1617815802166,57.0994,1991.4,1990.1,2.0]
[1617815802870,59.2852,1991.4,1990.2,6.15]
[1617815803069,59.2852,1991.4,1990.8,2.90695]
[1617815803469,59.2852,1991.4,1990.8,5.05785]
[1617815803669,59.2852,1991.4,1990.9,6.18]
[1617815803868,27.7922,1992.7,1990.9,6.18]
[1617815804069,27.7922,1992.7,1990.8,5.05785]
[1617815804070,66.9864,1992.3,1990.8,5.05785]
[1617815804469,30.0,1992.2,1990.8,5.05785]
[1617815804869,30.0,1992.2,1990.9,6.14]
[1617815805168,30.0,1992.2,1991.1,2.90695]
[1617815807368,2.90695,1991.2,1990.9,2.90695]
[1617815809279,2.90695,1991.0,1990.9,2.90695]
[1617815809680,2.90695,1991.0,1989.9,2.0]
[1617815810382,2.90695,1991.0,1990.0,6.11]
[1617815810583,2.90695,1991.0,1990.0,8.11]
[1617815810883,2.90695,1991.0,1990.0,2.0]
[1617815811283,69.5671,1991.3,1990.6,2.90695]
[1617815811682,69.5671,1991.3,1990.7,6.05]
[1617815813183,99.5671,1991.3,1989.5,80.2986]
[1617815813384,101.9079,1991.3,1990.1,2.90695]
[1617815813784,71.9079,1991.3,1990.2,6.13]
[1617815814385,101.9079,1991.3,1990.2,6.13]
[1617815814586,32.3408,1991.3,1990.2,6.13]
[1617815814986,77.9205,1990.4,1990.2,6.13]
[1617815815386,77.9205,1990.4,1990.3,2.90695]
[1617815815989,77.9205,1990.4,1990.3,9.23695]
[1617815816190,2.0,1991.4,1988.4,5.32749781]
[1617815816492,57.75,1989.9,1988.4,5.32749781]
[1617815816790,89.8353,1989.9,1988.5,6.19]
[1617815816989,2.0,1989.8,1988.5,6.19]
[1617815817190,30.0,1989.7,1988.4,6.14]
[1617815817390,30.0,1989.7,1988.6,2.90695]
[1617815817592,30.0,1989.7,1988.6,9.07695]
[1617815817793,83.0417,1989.0,1988.6,2.90695]
[1617815817991,84.9643,1989.0,1988.6,2.90695]
[1617815818993,114.9643,1989.0,1988.6,2.90695]
[1617815819391,2.90695,1988.7,1988.6,2.90695]
[1617815820090,2.90695,1988.7,1987.2,2.0]
[1617815820392,76.0411,1988.1,1987.2,2.0]
[1617815820591,78.0772,1988.1,1987.2,2.0]
[1617815820791,78.0772,1988.1,1987.3,6.07]
[1617815820991,2.0361,1988.1,1987.3,6.07]
[1617815821193,2.90695,1988.7,1987.3,66.5622]
[1617815821396,2.90695,1988.7,1988.6,2.90695]
[1617815821692,2.90695,1988.7,1988.6,5.33375]
[1617815821892,2.90695,1988.7,1988.6,11.61375]
[1617815824093,75.0689,1988.8,1988.6,11.61375]
[1617815824693,75.0689,1988.8,1988.6,9.18695]
[1617815824896,75.0689,1988.8,1987.3,82.7763]
[1617815825099,1.9925,1988.8,1987.1,1.0142]
[1617815825298,76.1372,1988.2,1987.1,0.9942]
[1617815825498,76.1372,1988.2,1988.0,2.90695]
[1617815827201,76.1372,1988.2,1986.7,2.0]
[1617815827400,2.0017,1988.4,1987.6,2.90695]
[1617815828804,63.507,1987.7,1987.6,2.90695]
[1617815829003,32.9554,1989.4,1987.6,2.90695]
[1617815829212,71.4541,1988.6,1987.6,11.08045]
[1617815829403,71.4541,1988.6,1988.2,2.90695]
[1617815829606,71.4541,1988.6,1988.2,4.89355]
[1617815829814,12.885,1989.8,1988.3,6.19]
[1617815830006,70.1108,1989.3,1988.3,6.19]
[1617815831403,2.90695,1988.4,1988.2,1.9866]
[1617815831711,2.90695,1988.4,1987.7,2.90695]
[1617815833005,2.90695,1988.4,1987.8,6.14]
[1617815833205,2.90695,1988.4,1987.8,8.1348]
[1617815833406,2.90695,1988.4,1988.3,2.90695]
[1617815834209,2.90695,1988.4,1987.2,2.2938]
[1617815834709,2.90695,1988.4,1987.3,6.19]
[1617815835110,2.90695,1988.4,1987.3,7.1889]
[1617815835611,2.90695,1988.4,1988.3,2.90695]
[1617815835910,2.90695,1988.4,1988.3,5.75855]
[1617815836311,66.982,1989.1,1988.3,11.96855]
[1617815837414,66.982,1989.1,1989.0,2.90695]
[1617815837713,66.982,1989.1,1989.0,5.39625]
[1617815838213,12.8043,1990.5,1989.0,5.39625]
[1617815838414,57.8811,1990.3,1989.0,11.56625]
[1617815839419,2.90695,1989.1,1989.0,11.56625]
[1617815839618,2.90695,1989.1,1989.0,2.4893]
[1617815839816,77.7204,1989.0,1987.2,63.2954]
[1617815840217,79.7928,1989.0,1987.2,63.2954]
[1617815840517,79.7928,1989.0,1987.3,6.14]
[1617815841417,77.7204,1989.0,1988.3,2.90695]
[1617815841818,77.7204,1989.0,1988.4,6.29]
[1617815842621,77.7204,1989.0,1988.3,2.90695]
[1617815843421,77.7204,1989.0,1988.5,2.90695]
[1617815843821,77.7204,1989.0,1988.6,6.31]
[1617815845521,2.90695,1988.6,1988.5,5.07575]
[1617815846621,2.90695,1988.6,1988.5,11.25575]
[1617815847122,2.90695,1988.6,1988.5,9.08695]
[1617815847423,2.90695,1988.6,1987.2,61.0016]
[1617815847722,2.90695,1988.6,1987.9,2.90695]
[1617815848122,2.90695,1988.6,1988.0,6.04]
[1617815849527,2.90695,1988.1,1988.0,6.04]
[1617815854431,1.90695,1988.1,1988.0,6.04]
[1617815856034,77.7204,1989.0,1988.0,6.04]
[1617815856234,77.7204,1989.0,1988.0,9.1193]
[1617815857640,77.7204,1989.0,1988.9,2.90695]
[1617815857842,77.7204,1989.0,1988.9,4.81555]
[1617815859339,30.0,1990.0,1988.9,4.81555]
[1617815859540,2.90695,1989.0,1988.9,4.81555]
[1617815859741,2.90695,1989.0,1988.9,11.10555]
[1617815860041,2.90695,1989.0,1988.9,4.81555]
[1617815864144,2.90695,1989.0,1988.9,10.88555]
[1617815864344,2.90695,1989.0,1988.9,94.99555]
[1617815864844,2.90695,1989.0,1988.9,96.99555]
[1617815866150,57.7731,1990.2,1988.9,126.99555]
[1617815866349,11.4358005,1997.5,1988.9,126.99555]
[1617815866350,2.0,1991.2,1988.9,42.88555]
[1617815866647,71.0682,1991.5,1989.6,65.9285]
[1617815866849,71.0682,1991.5,1989.6,68.1174]
[1617815867048,71.0682,1991.5,1989.7,8.15]
[1617815867548,101.0682,1991.5,1989.7,6.15]
[1617815867751,101.0682,1991.5,1990.1,2.90695]
[1617815867950,101.0682,1991.5,1990.1,5.31505]
[1617815868250,101.0682,1991.5,1990.2,6.11]
[1617815868450,101.0682,1991.5,1990.1,5.31505]
[1617815869150,101.0682,1991.5,1990.2,6.02]
[1617815869452,101.0682,1991.5,1990.1,5.31505]
[1617815869655,2.90695,1990.2,1990.1,5.31505]
[1617815870156,2.90695,1990.2,1990.1,11.61505]
[1617815871961,2.90695,1990.2,1990.1,5.31505]
[1617815872160,2.90695,1990.2,1990.1,2.90695]
[1617815875763,2.90695,1990.2,1990.1,5.04495]
[1617815875965,2.90695,1990.2,1990.1,11.17495]
[1617815880869,2.90695,1990.2,1990.1,5.04495]
[1617815881073,2.90695,1990.2,1988.9,2.0]
[1617815881271,62.1222,1989.9,1988.9,2.0]
[1617815881771,62.1222,1989.9,1989.0,6.13]
[1617815881971,62.1222,1989.9,1989.5,2.90695]
[1617815882171,62.1222,1989.9,1989.6,6.21]
[1617815882771,1.8974,1990.6,1989.6,6.21]
[1617815882977,57.7508,1990.8,1989.6,6.21]
[1617815883775,57.7508,1990.8,1989.6,8.21]
[1617815883978,57.7508,1990.8,1990.1,2.90695]
[1617815884276,57.7508,1990.8,1990.2,6.14]
[1617815885982,2.90695,1990.3,1990.2,6.14]
[1617815887086,2.90695,1990.3,1990.2,64.2766]
[1617815887787,59.4352,1991.4,1990.2,64.2766]
[1617815887987,59.4352,1991.4,1991.1,2.90695]
[1617815888188,8.69683164,1994.6,1991.1,5.84015]
[1617815888189,0.51623725,1992.7,1991.1,5.84015]
[1617815888488,69.7762,1992.3,1991.2,6.24]
[1617815889989,69.7762,1992.3,1991.4,2.90695]
[1617815890191,69.7762,1992.3,1991.2,6.24]
[1617815890389,32.0303,1992.3,1989.8,30.0]
[1617815890589,59.4531,1991.6,1989.8,2.0]
[1617815890788,2.4588,1991.6,1989.5,0.9949]
[1617815890988,56.8905,1990.8,1988.9,62.0378]
[1617815891189,59.8834,1990.8,1989.7,6.02]
[1617815891588,59.8834,1990.8,1989.6,6.03]
[1617815891589,2.9929,1990.8,1989.6,2.0]
[1617815891790,2.9929,1990.8,1989.8,68.1604]
[1617815891990,2.9929,1990.8,1990.3,2.90695]
[1617815892494,2.9929,1990.8,1990.4,6.24]
[1617815893194,56.8563,1991.3,1990.4,6.24]
[1617815893995,2.90695,1990.5,1990.4,6.24]
[1617815895498,2.90695,1990.5,1990.3,2.90695]
[1617815896097,76.237,1990.3,1990.1,2.90695]
[1617815896297,78.7304,1990.3,1988.9,30.0]
[1617815896900,78.7304,1990.3,1989.0,6.08]
[1617815897300,78.7304,1990.3,1989.0,7.093]
[1617815897699,78.7304,1990.3,1989.0,6.08]
[1617815898100,78.7304,1990.3,1989.5,2.90695]
[1617815898703,30.0,1990.2,1988.8,68.696]
[1617815899002,32.0,1990.2,1988.8,68.696]
[1617815900003,2.90695,1989.0,1988.9,6.21]
[1617815900604,5.19005,1989.0,1988.9,6.21]
[1617815901908,2.90695,1989.0,1988.9,6.21]
[1617815903509,67.3973,1989.3,1988.9,6.21]
[1617815904013,67.3973,1989.3,1989.2,2.90695]
[1617815904310,67.3973,1989.3,1989.2,5.90565]
[1617815904511,67.3973,1989.3,1989.2,12.06565]
[1617815905020,2.90695,1989.6,1989.2,12.06565]
[1617815905220,75.5951,1990.1,1989.2,12.06565]
[1617815906013,75.5951,1990.1,1989.6,2.90695]
[1617815906213,75.5951,1990.1,1989.6,5.39265]
[1617815907114,75.5951,1990.1,1989.7,6.29]
[1617815908116,75.5951,1990.1,1989.9,2.90695]
[1617815909217,30.0,1991.0,1989.9,2.90695]
[1617815909417,81.2489,1990.9,1989.9,2.90695]
[1617815909617,32.0,1990.8,1989.4,75.4415]
[1617815909820,32.0,1990.8,1988.5,30.0]
[1617815910020,81.3102,1990.1,1988.5,30.0]
[1617815910319,83.7323,1990.1,1989.4,2.90695]
[1617815911323,113.7323,1990.1,1988.4,1.0203]
[1617815911721,113.7323,1990.1,1988.2,75.4983]
[1617815912024,115.7323,1990.1,1988.2,75.4983]
[1617815912222,115.7323,1990.1,1988.8,2.90695]
[1617815912826,34.4221,1990.1,1988.8,2.90695]
[1617815913226,57.9205,1989.8,1988.8,2.90695]
[1617815913425,87.9205,1989.8,1988.8,2.90695]
[1617815913624,57.9205,1989.8,1988.8,2.90695]
[1617815913825,30.0,1989.7,1988.8,2.90695]
[1617815914226,2.90695,1988.9,1988.8,2.90695]
[1617815914426,4.92055,1988.9,1988.8,2.90695]
[1617815916028,2.90695,1988.9,1988.8,2.90695]
[1617815916228,57.9205,1989.8,1989.2,2.90695]
[1617815916427,0.46072298,1991.8,1989.2,5.32935]
[1617815916727,80.46,1990.4,1989.3,6.11]
[1617815918331,80.46,1990.4,1989.8,2.90695]
[1617815918531,80.46,1990.4,1989.8,5.68625]
[1617815919229,2.0,1990.9,1989.8,5.68625]
[1617815919429,63.3815,1991.2,1989.8,68.49075]
[1617815919630,63.3815,1991.2,1989.9,6.25]
[1617815920329,63.3815,1991.2,1990.3,2.90695]
[1617815920330,30.0,1991.1,1990.3,2.90695]
[1617815920529,30.0,1991.1,1990.3,5.85985]
[1617815921430,30.0,1991.1,1990.3,2.9529]
[1617815921732,30.0,1991.1,1989.8,65.5838]
[1617815922330,30.0,1991.1,1989.9,8.97695]
[1617815924232,2.90695,1990.0,1989.9,8.97695]
[1617815928341,2.90695,1990.0,1989.4,70.4548]
[1617815928538,2.90695,1990.0,1988.4,0.9981]
[1617815928738,80.687,1989.8,1988.5,81.2059]
[1617815928940,83.5564,1989.8,1988.5,81.2059]
[1617815929239,83.5564,1989.8,1988.6,6.16]
[1617815930342,83.5564,1989.8,1989.0,2.90695]
[1617815930541,83.5564,1989.8,1989.1,6.06]
[1617815932343,2.90695,1989.2,1989.1,6.06]
[1617815932642,2.90695,1989.2,1988.5,81.2059]
[1617815933345,2.90695,1989.2,1988.6,6.08]
[1617815933743,2.90695,1989.2,1988.6,8.7346]
[1617815934245,2.90695,1989.2,1989.1,2.90695]
[1617815934445,2.90695,1989.2,1989.1,4.92135]
[1617815934743,2.90695,1989.2,1989.1,11.19135]
[1617815935444,2.0,1990.5,1989.1,11.19135]
[1617815935644,2.0,1990.5,1989.2,80.3017]
[1617815936044,2.0,1990.5,1989.3,6.25]
[1617815936447,2.0,1990.5,1989.7,2.90695]
[1617815936648,32.0,1990.5,1989.7,2.8202]
[1617815936853,2.0,1990.5,1989.7,2.8202]
[1617815937647,2.0,1990.6,1989.7,2.8202]
[1617815937847,90.0526,1990.7,1989.7,2.8202]
[1617815938346,2.90695,1989.8,1989.7,5.72715]
[1617815938749,2.90695,1989.8,1989.7,2.8202]
[1617815938947,2.90695,1989.8,1989.1,2.0144]
[1617815939148,75.25425,1989.8,1988.6,70.6653]
[1617815939648,75.25425,1989.8,1988.7,6.08]
[1617815940349,75.25425,1989.8,1989.1,2.90695]
[1617815940350,72.3473,1989.8,1989.1,2.90695]
[1617815940649,72.3473,1989.8,1989.2,6.08]
[1617815942449,72.3473,1989.8,1989.5,2.90695]
[1617815942649,2.0,1990.7,1989.6,6.14]
[1617815942851,72.9319,1990.4,1989.6,6.14]
[1617815944350,72.9319,1990.4,1989.9,2.90695]
[1617815944752,72.9319,1990.4,1990.0,6.27]
[1617815946352,2.90695,1990.1,1990.0,6.27]
[1617815948555,77.6633,1990.7,1990.0,6.27]
[1617815950555,77.6633,1990.7,1989.9,2.8284]
[1617815950755,77.6633,1990.7,1989.8,75.2761]
[1617815951556,77.6633,1990.7,1989.9,6.29]
[1617815952657,77.6633,1990.7,1990.0,2.90695]
[1617815952858,77.6633,1990.7,1990.1,6.12]
[1617815953358,77.6633,1990.7,1990.0,2.90695]
[1617815954461,2.90695,1990.1,1990.0,2.90695]
[1617815955460,77.6633,1990.7,1990.0,2.90695]
[1617815955661,77.6633,1990.7,1990.0,11.09915]
[1617815956461,77.6633,1990.7,1990.3,2.90695]
[1617815956863,77.6633,1990.7,1990.4,6.05]
[1617815957062,77.6633,1990.7,1990.4,7.9208]
[1617815958564,77.6633,1990.7,1990.5,2.90695]
[1617815959365,2.0,1991.5,1990.5,2.90695]
[1617815959567,2.0,1991.5,1990.7,74.1551]
[1617815960168,32.571,1991.6,1990.7,74.1551]
[1617815960569,2.90695,1990.8,1990.7,74.1551]
[1617815962472,2.90695,1991.0,1990.7,77.06205]
[1617815964573,2.90695,1990.8,1990.7,77.06205]
[1617815966476,2.90695,1990.8,1990.7,2.90695]
[1617815968280,59.3727,1991.2,1990.7,2.90695]
[1617815968480,2.90695,1991.2,1991.1,2.90695]
[1617815970984,2.90695,1991.2,1990.9,65.8012]
[1617815971586,2.90695,1991.2,1991.1,2.4447]
[1617815972687,59.4656,1991.9,1991.1,5.35165]
[1617815972886,59.4656,1991.9,1991.1,11.37165]
[1617815974786,84.1614,1992.5,1991.7,2.90695]
[1617815974987,84.1614,1992.5,1991.7,5.03345]
[1617815975686,114.1614,1992.5,1991.7,5.03345]
[1617815975887,114.1614,1992.5,1991.7,2.1265]
[1617815976088,2.0,1992.4,1991.1,2.4447]
[1617815976291,82.6579,1991.6,1990.0,73.4202]
[1617815976490,82.6579,1991.6,1988.5,19.0051351]
[1617815976491,2.5891,1991.6,1988.5,19.0051351]
[1617815976690,82.6662,1991.0,1990.7,2.90695]
[1617815976890,85.598,1991.0,1990.7,2.90695]
[1617815978490,85.598,1991.0,1989.8,73.4276]
[1617815978690,2.90695,1990.8,1990.0,2.90695]
[1617815979295,2.90695,1990.8,1990.1,6.21]
[1617815979492,2.90695,1990.8,1990.0,2.90695]
[1617815980594,82.6662,1991.0,1990.2,2.90695]
[1617815980793,82.6662,1991.0,1990.2,5.03705]